Cogmind - Beta 13 @@@ ROGUE MODE // 2024.03.15 @ 15:56:31 Player: opdo Result: Destroyed by Piercing Trap Performance ------------- Evolutions (0) 0 Regions Visited (3) 600 Robots Destroyed (9) 45 Value Destroyed (292) 292 Prototype IDs (0) 0 Alien Tech Used (0) 0 Bonus (55) 55 TOTAL SCORE: 992 Bonus ------- Follower Combat Kills 55 Cogmind --------- Core Integrity 0/250 Matter 300/300 Energy 158/160 System Corruption 0% Temperature Cool (4) Movement Hovering (56) Location -10/Subcaves Parts ------- > --- POWER (1) -------- Light Nuclear Core > --- PROPULSION (2) --- Hover Unit Hover Unit > --- UTILITY (2) ------ Sensor Array Signal Interpreter > --- WEAPON (2) ------- Light Assault Rifle Makeshift Shrapnel Gun > --- INVENTORY (5) ---- Subdweller Power Source Aluminum Leg Visual Processing Unit Peak State ------------ > --- POWER ------------ Ion Engine > --- PROPULSION ------- Aluminum Leg Carbon-fiber Leg > --- UTILITY ---------- Sensor Array Signal Interpreter > --- WEAPON ----------- Light Assault Rifle Makeshift Shrapnel Gun > --- INVENTORY -------- Light Nuclear Core Aluminum Leg Hover Unit Hover Unit Visual Processing Unit [Rating: 12] Favorites ----------- Power Ion Engine Engine Ion Engine Power Core Light Nuclear Core Propulsion Aluminum Leg Leg Aluminum Leg Hover Unit Hover Unit Utility Signal Interpreter Device Sensor Array Storage Small Storage Unit Processor Signal Interpreter Weapon Light Assault Rifle Ballistic Gun Light Assault Rifle Build | -11 -10 -10 -10 ------- Run | Yrd Mat Min Sub Slots Evolved . | . . . . Power . | . . . . Propulsion . | . . . . Utility . | . . . . Weapon . | . . . . Parts Attached 15 | 6 3 1 5 Power 2 | 1 . . 1 Engine 1 | 1 . . . Core 1 | . . . 1 Reactor . | . . . . Propulsion 6 | 2 . . 4 Treads . | . . . . Leg 4 | 2 . . 2 Wheel . | . . . . Hover 2 | . . . 2 Flight . | . . . . Utility 4 | 1 3 . . Device 1 | . 1 . . Storage 1 | 1 . . . Processor 2 | . 2 . . Hackware . | . . . . Protection . | . . . . Artifact . | . . . . Weapon 3 | 2 . 1 . Energy Gun . | . . . . Energy Cannon . | . . . . Ballistic Gun 3 | 2 . 1 . Ballistic Cannon . | . . . . Launcher . | . . . . Special Weapon . | . . . . Impact Weapon . | . . . . Slashing Weapon . | . . . . Piercing Weapon . | . . . . Special Melee Weapon . | . . . . Unidentified Prototypes . | . . . . Parts Lost 2 | . . . 2 Power . | . . . . Propulsion 2 | . . . 2 Utility . | . . . . Weapon . | . . . . Highest Loss Streak 2 | . . . 2 To Critical Strikes . | . . . . Average Slot Usage (%) 99 | . 96 100 99 Engine 13 | . 14 14 12 Leg 26 | . 28 28 23 Hover 1 | . . . 4 Device 12 | . 2 14 14 Storage 1 | . 10 . . Processor 13 | . 11 14 14 Ballistic Gun 28 | . 28 28 28 Naked Turns . | . . . . Heaviest Build 12 | 12 12 9 9 Greatest Support 25 | 20 20 20 25 Greatest Overweight (x) 2 | . . . 2 Average Overweight (x) . | . . . . Largest Inventory Capacity 8 | 8 8 5 5 Average Capacity 5 | 7 7 5 5 Most Carried 6 | 4 6 5 5 Average Carried 4 | 1 3 5 4 Final Capacity 8 | 8 5 5 5 Final Carried 5 | 2 5 5 3 Class Distribution -------------------- 94% | Mutant 5% | Scavenger-Mutant Dominant Class ---------------- Mutant | -10/Materials Mutant | -10/Mines Mutant | -10/Subcaves Resources | -11 -10 -10 -10 ----------- Run | Yrd Mat Min Sub Matter Collected 476 | 207 33 88 148 Remotely . | . . . . Salvage Created 297 | . 33 99 165 Parts 22 | . 10 2 10 Haulers Intercepted . | . . . . Recyclers Shooed . | . . . . Parts Field Recycled . | . . . . Retrieved Matter . | . . . . Parts Self-Destructed 14 | . . . 14 Prevented . | . . . . Kills | -11 -10 -10 -10 ------- Run | Yrd Mat Min Sub Combat Hostiles Destroyed 7 | . . 2 5 Guns 7 | . . 2 5 Classes Destroyed 4 | . 1 1 2 Watcher 2 | . 2 . . Swarmer 1 | . . . 1 Sentry 2 | . . 2 . Subdweller 4 | . . . 4 Best Kill Streak 4 | . 1 2 4 Combat Bots Only 4 | . . 2 4 Max Kills in Single Turn 1 | . 1 1 1 Gunslinging . | . . . . Exploded . | . . . . Melee . | . . . . Uniques/NPCs Destroyed . | . . . . Combat | -11 -10 -10 -10 -------- Run | Yrd Mat Min Sub Hostile Shots Fired 66 | . . 2 64 Missed 21 | . . 1 20 Damage Taken 670 | . . 15 655 Core 256 | . . . 256 Absorbed by Shields . | . . . . Core Remaining (%) 100 | 100 . . . Volleys Fired 28 | . 8 2 18 Largest 2 | . 2 2 2 Hottest 44 | . 40 44 44 Shots Fired 56 | . 16 4 36 Gun 56 | . 16 4 36 Cannon . | . . . . Launcher . | . . . . Special . | . . . . Kinetic 56 | . 16 4 36 Thermal . | . . . . Explosive . | . . . . Electromagnetic . | . . . . Robot Hit Streak 7 | . 2 5 7 Robot Miss Streak 5 | . 5 2 5 Penetration Max . | . . . . Secondary Targets . | . . . . Shots Hit Robots 36 | . 6 3 27 Core Hits 21 | . 5 5 11 Critical Kills . | . . . . Critical Parts Destroyed . | . . . . Critical Strikes . | . . . . Melee Attacks . | . . . . Impact . | . . . . Slashing . | . . . . Piercing . | . . . . Sneak Attacks . | . . . . Combat Hostiles . | . . . . Follow-up Attacks . | . . . . Damage Inflicted 476 | . 65 48 363 Guns 476 | . 65 48 363 Cannons . | . . . . Explosions . | . . . . Melee . | . . . . Ramming . | . . . . Kinetic 476 | . 65 48 363 Thermal . | . . . . Explosive . | . . . . Electromagnetic . | . . . . Impact . | . . . . Slashing . | . . . . Piercing . | . . . . Highest Corruption . | . . . . Average Corruption . | . . . . Corruption Purged . | . . . . Corruption Blocked . | . . . . Overload Shots . | . . . . Overflow Damage . | . . . . Projectiles . | . . . . Explosions . | . . . . Melee . | . . . . Knockbacks . | . . . . Impact . | . . . . Kinetic . | . . . . Secondary . | . . . . Self-Inflicted Damage . | . . . . Shots . | . . . . Rammed . | . . . . Targets Rammed . | . . . . Kicked . | . . . . Crushed . | . . . . Highest Temperature 18 | . . 13 18 Average Temperature 8 | . . 5 15 Received Heat Transfer 237 | . . 9 228 Siege Activations . | . . . . Robots Corrupted . | . . . . Combat Hostiles . | . . . . Parts Fried . | . . . . Impact Corruptions . | . . . . Robots Melted . | . . . . Combat Hostiles . | . . . . Parts Melted 1 | . . . 1 Heat Transferred . | . . . . Parts Sabotaged . | . . . . Parts Stolen . | . . . . Parts Stripped . | . . . . Power Chain Reactions . | . . . . Alert | -11 -10 -10 -10 ------- Run | Yrd Mat Min Sub Peak Influence 72 | . 34 72 . Initial 13 | . . 13 . Average 10 | . 15 10 . Maximum Alert Level . | . . . . Low Security (%) 100 | 100 100 100 . Level 1 . | . . . . Level 2 . | . . . . Level 3 . | . . . . Level 4 . | . . . . Level 5 . | . . . . High Security . | . . . . Max Security . | . . . . Squads Dispatched . | . . . . Investigation . | . . . . Extermination . | . . . . Reinforcement . | . . . . Assault . | . . . . Garrison . | . . . . Intercept . | . . . . Searches Triggered . | . . . . Construction Impeded . | . . . . Haulers Reinforced . | . . . . Active Scanning Responses . | . . . . Cargo Convoy Interrupts . | . . . . Stealth | -11 -10 -10 -10 --------- Run | Yrd Mat Min Sub Distress Signals . | . . . . Communications Jammed . | . . . . Distress Signals . | . . . . Times Spotted 39 | . 3 2 34 Peak Tracking Total 7 | . 2 2 7 Tactical Retreats 1 | . . . 1 Traps | -11 -10 -10 -10 ------- Run | Yrd Mat Min Sub Traps Triggered 1 | . . . 1 Indirectly . | . . . . Trap Hack Attempts . | . . . . Triggered . | . . . . Disarmed . | . . . . Reprogrammed . | . . . . Reused . | . . . . Traps Extracted . | . . . . Installed . | . . . . Triggered . | . . . . Machines | -11 -10 -10 -10 ---------- Run | Yrd Mat Min Sub Machines Disabled . | . . . . Max in Single Turn . | . . . . Machines Repaired . | . . . . Machines Dismantled . | . . . . Machines Sabotaged . | . . . . Overloaded Fab Kills . | . . . . Hacking | -11 -10 -10 -10 --------- Run | Yrd Mat Min Sub Machines Accessed 2 | . 2 . . Terminals 2 | . 2 . . Fabricators . | . . . . Repair Stations . | . . . . Recycling Units . | . . . . Scanalyzers . | . . . . Garrison Access . | . . . . Total Hacks 2 | . 2 . . Successful 1 | . 1 . . Failed 1 | . 1 . . Catastrophic . | . . . . Database Lockouts . | . . . . Manual . | . . . . Terminals 2 | . 2 . . Fabricators . | . . . . Repair Stations . | . . . . Recycling Units . | . . . . Scanalyzers . | . . . . Garrison Access . | . . . . Terminal Hacks 1 | . 1 . . Zone Layout 1 | . 1 . . Fabricator Hacks . | . . . . Repair Station Hacks . | . . . . Recycling Unit Hacks . | . . . . Scanalyzer . | . . . . Garrison Access Hacks . | . . . . Unauthorized Hacks . | . . . . Terminals . | . . . . Fabricators . | . . . . Repair Stations . | . . . . Recycling Units . | . . . . Scanalyzers . | . . . . Garrison Access . | . . . . Data Cores Recovered . | . . . . Used . | . . . . Hacking Detections 1 | . 1 . . Full Trace Events . | . . . . Feedback Events . | . . . . Feedback Blocked . | . . . . Robot Schematics Acquired . | . . . . Robots Built . | . . . . Authchips . | . . . . Time . | . . . . Total Robot Build Rating . | . . . . Part Schematics Acquired . | . . . . Parts Built . | . . . . Authchips . | . . . . Time . | . . . . Total Part Build Rating . | . . . . Parts Repaired . | . . . . Time . | . . . . Parts Recycled . | . . . . Recycled Matter . | . . . . Retrieved Matter . | . . . . Retrieved Components . | . . . . Parts Scanalyzed . | . . . . Part Schematics Acquired . | . . . . Parts Damaged . | . . . . Bothacking | -11 -10 -10 -10 ------------ Run | Yrd Mat Min Sub Used RIF Installer . | . . . . Robots Hacked . | . . . . Non-combat . | . . . . Combat . | . . . . Robot Hacks Applied . | . . . . Relay Couplers Released . | . . . . Fabnet Peak Effective % . | . . . . Robots Rewired . | . . . . Allies Hacked . | . . . . Hacks Repelled . | . . . . Allies | -11 -10 -10 -10 -------- Run | Yrd Mat Min Sub Total Allies 2 | . . 2 . Largest Group 2 | . . 2 1 Highest-Rated Group 53 | . . 53 31 Highest-Rated Ally 31 | . . 31 31 Total Orders . | . . . . Ally Attacks 18 | . . 2 16 Total Damage 319 | . . 41 278 Kills 2 | . . . 2 Allies Corrupted . | . . . . Allies Melted . | . . . . Intel | -11 -10 -10 -10 ------- Run | Yrd Mat Min Sub Robot Analysis Total . | . . . . Derelict Logs Recovered 1 | . . 1 . Drone Launches . | . . . . Drone Recoveries . | . . . . Exploration | -11 -10 -10 -10 ------------- Run | Yrd Mat Min Sub Turns Passed 1272 | 72 123 663 414 Spaces Moved 1011 | 57 74 537 343 Core 20 | 14 . . 6 Treads . | . . . . Legs 887 | 43 74 537 233 Wheels . | . . . . Hover 104 | . . . 104 Flight . | . . . . Fastest Speed 50 | 50 120 120 56 Average Speed 112 | 102 120 120 101 Slowest Speed 150 | 120 120 120 150 Overloaded Moves . | . . . . Propulsion Burnouts . | . . . . Robots Hopped . | . . . . Cave-ins Triggered . | . . . . Exploration Rate (%) 34 | 3 21 93 19 Regions Visited 3 Branch Regions 2 Pre-discovered Areas . | . . . . Known Exits Taken 2 | . 1 1 . Unknown Exits Taken 1 | 1 . . . Scrap Searched 1 | . . 1 . Spaces Dug . | . . . . Terrain Destroyed . | . . . . Melee . | . . . . Projectile . | . . . . AOE . | . . . . Terrain Rammed . | . . . . Walls Destroyed . | . . . . Machines Disabled . | . . . . Actions | -11 -10 -10 -10 --------- Run | Yrd Mat Min Sub Total 1100 | 70 98 552 380 Wait 11 | . . 11 . Move 1008 | 56 73 536 343 Hop . | . . . . Pick Up 25 | 8 9 1 7 Fast Attach . | . . . . Attach 11 | 6 3 . 2 Detach 1 | . 1 . . Swap 4 | . . 1 3 Drop 12 | . 4 1 7 Fire 28 | . 8 2 18 Melee . | . . . . Ram . | . . . . Kick . | . . . . Crush . | . . . . Escape Stasis . | . . . . Rewire . | . . . . Trap . | . . . . Miscellaneous . | . . . . Route ------- -11/Scrapyard -10/Materials -10/Mines (discovered 3 exits: *Mat x2 / *Sub) -10/Subcaves (discovered 2 exits: *Mat / *Rec) History --------- Turn | Location | Event 9 | -11/Scrapyard | Discovered new exit (range 15) 73 | -11/Scrapyard | Entered Materials 155 | -10/Materials | Discovered new exit (range 16) 193 | -10/Materials | Identified exit to Mines 196 | -10/Materials | Entered Mines 210 | -10/Mines | Discovered new exit (range 8) 226 | -10/Mines | A weapon hastily lodged in a ceiling crevice suddenly fell to the ground 243 | -10/Mines | Discovered new exit (range 10) 253 | -10/Mines | Identified exit to Materials 308 | -10/Mines | Build established: Mutant 455 | -10/Mines | Learned location of 1 exit from Materials 847 | -10/Mines | Discovered new exit (range 10) 858 | -10/Mines | Identified exit to Subcaves 859 | -10/Mines | Entered Subcaves 859 | -10/Subcaves | Accompanied by 1 ally 864 | -10/Subcaves | Led the pair of lost Derelicts to an unsafe place 972 | -10/Subcaves | Ambushed by swarm of Subdwellers 974 | -10/Subcaves | Ambushed by Subdwellers from Twisted Machinery 978 | -10/Subcaves | Ambushed by Subdwellers from Twisted Machinery 984 | -10/Subcaves | Ambushed by Subdweller buried in earth 1076 | -10/Subcaves | Discovered new exit (range 15) 1083 | -10/Subcaves | Core integrity fell below 50% 1103 | -10/Subcaves | Identified exit to Recycling 1169 | -10/Subcaves | Discovered new exit (range 13) 1177 | -10/Subcaves | Ambushed by Subdwellers from Twisted Machinery 1185 | -10/Subcaves | Identified exit to Materials 1197 | -10/Subcaves | Core integrity fell below 20% 1258 | -10/Subcaves | Shifting Twisted Machinery released Scrap Shield 1273 | -10/Subcaves | Destroyed by Piercing Trap Last Messages --------------- Acquired 2 matter. EXIT=IDENTIFIED: MATERIALS HV Slug penetrates Twisted Machinery. Aluminum Leg destroyed. HV Slug penetrates Twisted Machinery. Carbon-fiber Leg destroyed. HV Slug penetrates SW-7VC(R). SW-7VC(R) destroyed. Acquired 3 matter. Acquired 21 matter. Acquired 10 matter. Acquired 8 matter. Dropped Ion Engine. Acquired Sub. Power Source. Acquired 2 matter. Scrap Shield falls loose from the Twisted Machinery. Triggered Piercing Trap. Spikes shoot up from the floor. Critical hit (Impale). Map ----- +----------------------------------------------------+ | ??????????????????????????????????????????? | | ??????????????????????????????????????????? | | #?????????????????????????????????????????? | | ##????????????????????????????????????????? | | ##???????????????????????????????????????? | | #???????????????????????????????????????? | | ##?? #?????????????????????????????????? | | ### ?????????????????????????????????? | | #?????????????????????????????????? | | # #?????????????????????????????????? | | # ?????????????????????????????????? | | # ???????????????????????????????????? | | #??????????????????????????????????????? | | #???##?????????????????????????????????? | | #??# ####?###??????????????????????????? | | #??# ### ###????????????????????????? | | #### ###??????????????????????? | | ## ##?????????????????????? | | #?# ##????????????????????? | | % #?# #?????##?????????????? | | ### ###### #?????????????? | | ## # # ^ #?????????????? | | #?????????????? | | # #?????????????? | | ## ### ##?????????????? | | ## ## ##?##@ #??????????????? | | # #### #???# #?????????????? | | # ##?? ??? #?????????????? | | ## ### #??# ?? #?????????????? | | #####?## # #??# ### ##?????????????? | | ######### #??# ##?# #??????????????? | | #??## #??# #?? ##??????????????? | | #??# ##?## ? #???????????????? | | #???????## ##"" #??# #???????????????? | | ##????????# "" #?? ????????????????? | | #?????????# !""## #???# ????????????????? | | ??????????# ""##?##???? ????????????????? | | ??????????#"" #???????? ????????????????? | | ??????????#" "??????? ????????????????? | | ??????????" "" ????? ????????????????? | | ?????????? "" ???? ????????????????? | | ?????????? "##### ???????????????????????? | | ??????????""#???? ??????????????????????? | | ?????????#""#?????????????????????????????? | | ??????????"???????????????????????????????? | | ??????????????????????????????????????????? | | ??????????????????????????????????????????? | | ??????????????????????????????????????????? | | ??????????????????????????????????????????? | | ??????????????????????????????????????????? | +----------------------------------------------------+ Best States ------------- Heat Dissipation 25 Energy Generation 14 Energy Capacity 250 Matter Stores 300 Matter Capacity 300 Sight Range 16 Robot Scan Range 14 Terrain Scan Density 10 Evasion (%) 55 Targeting Accuracy 6 Item Schematics ----------------- None Robot Schematics ------------------ None Fabricated ------------ Nothing Alien Tech Used ----------------- None Achievements -------------- None Challenges ------------ None Game ------ Seed ZhirovImprovedStorm Manual? 0 Play Time 00:11:24 Cumulative 6.5 hours Start 2024.03.15 @ 15:43:44 End 2024.03.15 @ 15:56:31 Sessions 1 Manual Loads 0 Difficulty Rogue Special Mode None Game No. 14 Rogue 12 Adventurer 2 Explorer 0 Win Type - Total 0 Types 0/0/0/0/0/0/0/0/0 Lore% 10 Gallery% 19 Achievement% 11 Wizard Run 0 Options --------- Layout 1 ASCII 0 Keyboard 0 Movement Arrows Keybinds 0 Fullscreen 1 Font 24/Smallcaps Map View 50x35 Zoom Use 0% Tactical HUD 0 Map Filters NONE Filters NONE Steam 1 RUN: 8a6fdcda-478d-4399-9fd4-fd7da6b50bdd